fUSD/lending_fUSD_20240420
["ID","MTS","AMOUNT","RATE_DAILY","PERIOD"]
[323049779,1713621055331,-500.0,0.00015342,2]
[323049780,1713621055342,-500.0,0.00015342,2]
[323049781,1713621055353,-500.0,0.00015342,2]
[323049782,1713621055364,-500.0,0.00015342,2]
[323049783,1713621055376,-500.0,0.00015342,2]
[323049784,1713621055386,-821.61,0.00015342,2]
[323049785,1713621055397,-500.0,0.00015342,2]
[323049786,1713621055408,-500.0,0.00015342,2]
[323049787,1713621055419,-500.0,0.00015342,2]
[323049788,1713621055429,-151.0,0.00015342,2]
[323049789,1713621055440,-151.0,0.00015342,2]
[323049790,1713621055451,-821.76,0.00015342,2]
[323049791,1713621055464,-500.0,0.00015342,2]
[323049792,1713621055475,-549.15,0.00015342,2]
[323049793,1713621055487,-500.0,0.00015342,2]
[323049794,1713621055497,-500.0,0.00015342,2]
[323049795,1713621055508,-151.0,0.00015342,2]
[323049796,1713621055519,-151.0,0.00015342,2]
[323049797,1713621055529,-500.0,0.00015342,2]
[323049798,1713621055540,-500.0,0.00015342,2]
[323049799,1713621055552,-500.0,0.00015342,2]
[323049800,1713621055565,-151.0,0.00015342,2]
[323049801,1713621055576,-151.0,0.00015342,2]
[323049802,1713621055587,-500.0,0.00015342,2]
[323049803,1713621055596,-500.0,0.00015342,2]
[323049804,1713621055607,-940.84,0.00015342,2]
[323049805,1713621055618,-500.0,0.00015342,2]
[323049806,1713621055627,-151.0,0.00015342,2]
[323049807,1713621055637,-500.0,0.00015342,2]
[323049808,1713621055646,-151.0,0.00015342,2]
[323049809,1713621055656,-863.56,0.00015342,2]
[323049810,1713621055667,-500.0,0.00015342,2]
[323049811,1713621055677,-1083.21,0.00015342,2]
[323049812,1713621055687,-500.0,0.00015342,2]
[323049813,1713621055697,-500.0,0.00015342,2]
[323049814,1713621055709,-500.0,0.00015342,2]
[323049815,1713621055719,-1649.11,0.00015342,2]
[323049816,1713621055729,-515.86,0.00015342,2]
[323049817,1713621055739,-500.0,0.00015342,2]
[323049818,1713621055749,-500.0,0.00015342,2]
[323049819,1713621055759,-500.0,0.00015342,2]
[323049820,1713621055770,-933.2,0.00015342,2]
[323049821,1713621055780,-500.0,0.00015342,2]
[323049822,1713621055789,-500.0,0.00015342,2]
[323049823,1713621055799,-1738.53,0.00015342,2]
[323049824,1713621055808,-500.0,0.00015342,2]
[323049825,1713621055818,-500.0,0.00015342,2]
[323049826,1713621055829,-500.0,0.00015342,2]
[323049827,1713621055840,-641.19,0.00015342,2]
[323049828,1713621055850,-546.2,0.00015342,2]
[323049829,1713621055861,-669.09,0.00015342,2]
[323049830,1713621055871,-151.0,0.00015342,2]
[323049831,1713621055881,-151.0,0.00015342,2]
[323049832,1713621055891,-538.48,0.00015342,2]
[323049833,1713621055902,-502.80113783,0.00015342,2]
[323049834,1713621055911,-500.0,0.00015342,2]
[323049835,1713621055922,-500.0,0.00015342,2]
[323049836,1713621055931,-526.85,0.00015342,2]
[323049837,1713621055941,-1472.9,0.00015342,2]
[323049838,1713621055951,-500.0,0.00015342,2]
[323049839,1713621055961,-500.0,0.00015342,2]
[323049840,1713621055972,-679.04,0.00015342,2]
[323049841,1713621055981,-633.05,0.00015342,2]
[323049842,1713621055991,-500.0,0.00015342,2]
[323049843,1713621056002,-500.0,0.00015342,2]
[323049844,1713621056012,-151.0,0.00015342,2]
[323049845,1713621056023,-151.0,0.00015342,2]
[323049846,1713621056034,-500.0,0.00015342,2]
[323049847,1713621056045,-500.0,0.00015342,2]
[323049848,1713621056055,-500.0,0.00015342,2]
[323049849,1713621056065,-500.0,0.00015342,2]
[323049850,1713621056076,-749.34,0.00015342,2]
[323049851,1713621056086,-889.7,0.00015342,2]
[323049852,1713621056097,-500.0,0.00015342,2]
[323049853,1713621056107,-500.0,0.00015342,2]
[323049854,1713621056118,-614.66,0.00015342,2]
[323049855,1713621056128,-669.86,0.00015342,2]
[323049856,1713621056140,-500.0,0.00015342,2]
[323049857,1713621056150,-627.14,0.00015342,2]
[323049858,1713621056161,-500.0,0.00015342,2]
[323049859,1713621056172,-500.0,0.00015342,2]
[323049860,1713621056182,-887.51,0.00015342,2]
[323049861,1713621056192,-500.0,0.00015342,2]
[323049862,1713621056202,-595.2,0.00015342,2]
[323049863,1713621056213,-151.0,0.00015342,2]
[323049864,1713621056223,-154.562896,0.00015342,2]
[323049865,1713621056233,-500.0,0.00015342,2]
[323049866,1713621056243,-500.0,0.00015342,2]
[323049867,1713621056254,-712.4,0.00015342,2]
[323049868,1713621056264,-500.0,0.00015342,2]
[323049869,1713621056275,-500.0,0.00015342,2]
[323049870,1713621056286,-500.0,0.00015342,2]
[323049871,1713621056297,-500.0,0.00015342,2]
[323049872,1713621056307,-583.86,0.00015342,2]
[323049873,1713621056318,-714.19,0.00015342,2]
[323049874,1713621056328,-654.49,0.00015342,2]
[323049875,1713621056338,-543.54,0.00015342,2]
[323049876,1713621056348,-856.07,0.00015342,2]
[323049877,1713621056359,-154.163492,0.00015342,2]
[323049878,1713621056369,-519.9,0.00015342,2]
[323049879,1713621056380,-500.0,0.00015342,2]
[323049880,1713621056390,-1382.29,0.00015342,2]
[323049881,1713621056400,-500.0,0.00015342,2]
[323049882,1713621056411,-500.0,0.00015342,2]
[323049883,1713621056421,-500.0,0.00015342,2]
[323049884,1713621056430,-704.01,0.00015342,2]
[323049885,1713621056439,-986.010252,0.00015342,2]
[323049886,1713621056449,-986.010252,0.00015342,2]
[323049887,1713621056460,-500.0,0.00015342,2]
[323049888,1713621056470,-500.0,0.00015342,2]
[323049889,1713621056481,-151.0,0.00015342,2]
[323049890,1713621056491,-151.0,0.00015342,2]
[323049891,1713621056501,-500.0,0.00015342,2]
[323049892,1713621056512,-778.05,0.00015342,2]
[323049893,1713621056522,-943.86,0.00015342,2]
[323049894,1713621056533,-533.87,0.00015342,2]
[323049895,1713621056543,-1206.79,0.00015342,2]
[323049896,1713621056554,-864.0,0.00015342,2]
[323049897,1713621056565,-986.010252,0.00015342,2]
[323049898,1713621056576,-871.35,0.00015342,2]
[323049899,1713621056586,-986.010252,0.00015342,2]
[323049900,1713621056596,-500.0,0.00015342,2]
[323049901,1713621056607,-500.0,0.00015342,2]
[323049902,1713621056617,-500.0,0.00015342,2]
[323049903,1713621056628,-581.68,0.00015342,2]
[323049904,1713621056639,-998.69,0.00015342,2]
[323049905,1713621056650,-500.0,0.00015342,2]
[323049906,1713621056662,-20000.0,0.00015342,5]
[323049907,1713621056672,-500.0,0.00015342,2]
[323049908,1713621056682,-580.51,0.00015342,2]
[323049909,1713621056693,-500.0,0.00015342,2]
[323049910,1713621056704,-500.0,0.00015342,2]
[323049911,1713621056714,-777.99,0.00015342,2]
[323049912,1713621056725,-564.88,0.00015342,2]
[323049913,1713621056735,-500.01691813,0.00015342,2]
[323049914,1713621056746,-500.0,0.00015342,2]
[323049915,1713621056756,-566.7,0.00015342,2]
[323049916,1713621056766,-500.0,0.00015342,2]
[323049917,1713621056775,-500.0,0.00015342,2]
[323049918,1713621056785,-772.56,0.00015342,2]
[323049919,1713621056795,-922.4,0.00015342,2]
[323049920,1713621056805,-151.0,0.00015342,2]
[323049921,1713621056815,-151.0,0.00015342,2]
[323049922,1713621056826,-500.0,0.00015342,2]
[323049923,1713621056835,-500.0,0.00015342,2]
[323049924,1713621056845,-500.0,0.00015342,2]
[323049925,1713621056855,-741.19,0.00015342,2]
[323049926,1713621056865,-510.23,0.00015342,2]
[323049927,1713621056876,-500.0,0.00015342,2]
[323049928,1713621056887,-1301.99,0.00015342,2]
[323049929,1713621056897,-1011.91,0.00015342,2]
[323049930,1713621056907,-729.34,0.00015342,2]
[323049931,1713621056917,-500.0,0.00015342,2]
[323049932,1713621056926,-598.99,0.00015342,2]
[323049933,1713621056936,-500.0,0.00015342,2]
[323049934,1713621056945,-590.27,0.00015342,2]
[323049935,1713621056955,-500.0,0.00015342,2]
[323049936,1713621056964,-500.0,0.00015342,2]
[323049937,1713621056973,-500.0,0.00015342,2]
[323049938,1713621056983,-500.0,0.00015342,2]
[323049939,1713621056994,-500.0,0.00015342,2]
[323049940,1713621057004,-500.0,0.00015342,2]
[323049941,1713621057014,-500.0,0.00015342,2]
[323049942,1713621057024,-983.5,0.00015342,2]
[323049943,1713621057034,-500.0,0.00015342,2]
[323049944,1713621057045,-500.0,0.00015342,2]
[323049945,1713621057055,-500.0,0.00015342,2]
[323049946,1713621057066,-500.0,0.00015342,2]
[323049947,1713621057076,-500.0,0.00015342,2]
[323049948,1713621057087,-500.0,0.00015342,2]
[323049949,1713621057098,-500.0,0.00015342,2]
[323049950,1713621057109,-500.0,0.00015342,2]
[323049951,1713621057120,-829.71,0.00015342,2]
[323049952,1713621057129,-605.59,0.00015342,2]
[323049953,1713621057139,-500.0,0.00015342,2]
[323049954,1713621057149,-500.0,0.00015342,2]
[323049955,1713621057160,-500.0,0.00015342,2]
[323049956,1713621057171,-1243.7,0.00015342,2]
[323049957,1713621057181,-272.06802914,0.00015342,2]
[323049958,1713621057191,-500.0,0.00015342,2]
[323049959,1713621057201,-1886.34,0.00015342,2]
[323049960,1713621057213,-500.0,0.00015342,2]
[323049961,1713621057223,-500.0,0.00015342,2]
[323049962,1713621057234,-500.0,0.00015342,2]
[323049963,1713621057244,-685.34,0.00015342,2]
[323049964,1713621057255,-500.0,0.00015342,2]
[323049965,1713621057266,-500.0,0.00015342,2]
[323049966,1713621057277,-500.0,0.00015342,2]
[323049967,1713621057289,-500.0,0.00015342,2]
[323049968,1713621057299,-500.0,0.00015342,2]
[323049969,1713621057310,-500.0,0.00015342,2]
[323049970,1713621057320,-500.0,0.00015342,2]
[323049971,1713621057333,-500.0,0.00015342,2]
[323049972,1713621057344,-500.0,0.00015342,2]
[323049973,1713621057355,-500.0,0.00015342,2]
[323049974,1713621057366,-500.0,0.00015342,2]
[323049975,1713621057377,-500.0,0.00015342,2]
[323049976,1713621057388,-723.5,0.00015342,2]
[323049977,1713621057397,-612.53,0.00015342,2]
[323049978,1713621057407,-500.0,0.00015342,2]
[323049979,1713621057417,-500.0,0.00015342,2]
[323049980,1713621057427,-730.92,0.00015342,2]
[323049981,1713621057437,-500.0,0.00015342,2]
[323049982,1713621057447,-500.0,0.00015342,2]
[323049983,1713621057456,-500.0,0.00015342,2]
[323049984,1713621057470,-500.0,0.00015342,2]
[323049985,1713621057480,-500.0,0.00015342,2]
[323049986,1713621057492,-500.0,0.00015342,2]
[323049987,1713621057503,-1025.52,0.00015342,2]
[323049988,1713621057512,-500.0,0.00015342,2]
[323049989,1713621057522,-151.0,0.00015342,2]
[323049990,1713621057532,-151.0,0.00015342,2]
[323049991,1713621057541,-500.0,0.00015342,2]
[323049992,1713621057550,-1486.68,0.00015342,2]
[323049993,1713621057559,-500.0,0.00015342,2]
[323049994,1713621057568,-970.1,0.00015342,2]
[323049995,1713621057577,-500.0,0.00015342,2]
[323049996,1713621057586,-261.27583175,0.00015342,2]
[323049997,1713621057596,-500.0,0.00015342,2]
[323049998,1713621057605,-500.0,0.00015342,2]
[323049999,1713621057614,-500.0,0.00015342,2]
[323050000,1713621057623,-600.76,0.00015342,2]
[323050001,1713621057632,-775.5,0.00015342,2]
[323050002,1713621057641,-500.0,0.00015342,2]
[323050003,1713621057652,-580.95,0.00015342,2]
[323050004,1713621057662,-500.0,0.00015342,2]
[323050005,1713621057672,-1195.92,0.00015342,2]
[323050006,1713621057681,-500.0,0.00015342,2]
[323050007,1713621057691,-500.0,0.00015342,2]
[323050008,1713621057701,-971.12,0.00015342,2]
[323050009,1713621057711,-500.0,0.00015342,2]
[323050010,1713621057721,-558.98,0.00015342,2]
[323050011,1713621057730,-500.0,0.00015342,2]
[323050012,1713621057739,-500.0,0.00015342,2]
[323050013,1713621057748,-751.59,0.00015342,2]
[323050014,1713621057757,-151.0,0.00015342,2]
[323050015,1713621057767,-151.0,0.00015342,2]
[323050016,1713621057776,-199.16,0.00015342,2]
[323050017,1713621057785,-500.0,0.00015342,2]
[323050018,1713621057795,-500.0,0.00015342,2]
[323050019,1713621057804,-500.0,0.00015342,2]
[323050020,1713621057814,-371.87502093,0.00015342,2]
[323050021,1713621057823,-1627.69,0.00015342,2]
[323050022,1713621057832,-500.0,0.00015342,2]
[323050023,1713621057841,-1693.65,0.00015342,2]
[323050024,1713621057851,-712.6,0.00015342,2]
[323050025,1713621057860,-500.0,0.00015342,2]
[323050026,1713621057869,-964.32,0.00015342,2]
[323050027,1713621057878,-500.0,0.00015342,2]
[323050028,1713621057887,-500.0,0.00015342,2]
[323050029,1713621057897,-500.0,0.00015342,2]
[323050030,1713621057906,-611.81,0.00015342,2]
[323050031,1713621057915,-1500.36,0.00015342,2]
[323050032,1713621057924,-500.0,0.00015342,2]
[323050033,1713621057933,-500.0,0.00015342,2]
[323050034,1713621057942,-630.97,0.00015342,2]
[323050035,1713621057951,-500.0,0.00015342,2]
[323050036,1713621057961,-1123.09,0.00015342,2]
[323050037,1713621057971,-500.0,0.00015342,2]
[323050038,1713621057980,-1122.67,0.00015342,2]
[323050039,1713621057989,-571.83,0.00015342,2]
[323050040,1713621057998,-500.0,0.00015342,2]
[323050041,1713621058008,-959.94,0.00015342,2]
[323050042,1713621058017,-666.18,0.00015342,2]
[323050043,1713621058027,-717.02,0.00015342,2]
[323050044,1713621058036,-500.0,0.00015342,2]
[323050045,1713621058046,-151.0,0.00015342,2]
[323050046,1713621058055,-151.0,0.00015342,2]
[323050047,1713621058065,-656.38,0.00015342,2]
[323050048,1713621058074,-500.0,0.00015342,2]
[323050049,1713621058083,-672.57,0.00015342,2]
[323050050,1713621058093,-817.63,0.00015342,2]
[323050051,1713621058102,-500.0,0.00015342,2]
[323050052,1713621058111,-500.0,0.00015342,2]
[323050053,1713621058120,-500.0,0.00015342,2]
[323050054,1713621058130,-748.28,0.00015342,2]
[323050055,1713621058139,-500.0,0.00015342,2]
[323050056,1713621058149,-1401.32,0.00015342,2]
[323050057,1713621058160,-151.0,0.00015342,2]
[323050058,1713621058170,-151.0,0.00015342,2]
[323050059,1713621058180,-1699.19,0.00015342,2]
[323050060,1713621058190,-500.0,0.00015342,2]
[323050061,1713621058203,-1021.58,0.00015342,2]
[323050062,1713621058215,-500.0,0.00015342,2]
[323050063,1713621058225,-2008.01,0.00015342,2]
[323050064,1713621058235,-502.08,0.00015342,2]
[323050065,1713621058245,-500.0,0.00015342,2]
[323050066,1713621058255,-623.84,0.00015342,2]
[323050067,1713621058268,-151.0,0.00015342,2]
[323050068,1713621058277,-151.0,0.00015342,2]
[323050069,1713621058289,-500.0,0.00015342,2]
[323050070,1713621058299,-556.29,0.00015342,2]
[323050071,1713621058309,-616.44,0.00015342,2]
[323050072,1713621058320,-1672.8,0.00015342,2]
[323050073,1713621058330,-1383.08,0.00015342,2]
[323050074,1713621058340,-500.0,0.00015342,2]
[323050075,1713621058350,-905.55,0.00015342,2]
[323050076,1713621058361,-500.0,0.00015342,2]
[323050077,1713621058371,-500.0,0.00015342,2]
[323050078,1713621058381,-500.0,0.00015342,2]
[323050079,1713621058392,-500.0,0.00015342,2]
[323050080,1713621058402,-151.0,0.00015342,2]
[323050081,1713621058414,-500.0,0.00015342,2]
[323050082,1713621058424,-151.0,0.00015342,2]
[323050083,1713621058435,-500.0,0.00015342,2]
[323050084,1713621058446,-500.0,0.00015342,2]
[323050085,1713621058456,-1271.86,0.00015342,2]
[323050086,1713621058466,-500.0,0.00015342,2]
[323050087,1713621058476,-531.26,0.00015342,2]
[323050088,1713621058486,-858.15,0.00015342,2]
[323050089,1713621058496,-500.0,0.00015342,2]
[323050090,1713621058508,-2051.78,0.00015342,2]
[323050091,1713621058518,-500.0,0.00015342,2]
[323050092,1713621058527,-500.0,0.00015342,2]
[323050093,1713621058537,-500.0,0.00015342,2]
[323050094,1713621058547,-2102.91,0.00015342,2]
[323050095,1713621058559,-273.46,0.00015342,2]
[323050096,1713621058570,-500.0,0.00015342,2]
[323050097,1713621058580,-500.0,0.00015342,2]
[323050098,1713621058590,-495.25,0.00015342,2]
[323050099,1713621058600,-888.43,0.00015342,2]
[323050100,1713621058612,-1428.28,0.00015342,2]
[323050101,1713621058628,-500.0,0.00015342,2]
[323050102,1713621058642,-500.0,0.00015342,2]
[323050103,1713621058656,-500.0,0.00015342,2]
[323050104,1713621058670,-547.06,0.00015342,2]
[323050105,1713621058683,-1132.15,0.00015342,2]
[323050106,1713621058696,-1220.03,0.00015342,2]
[323050107,1713621058708,-153.50786131,0.00015342,2]
[323050108,1713621058722,-1590.37,0.00015342,2]
[323050109,1713621058736,-500.0,0.00015342,2]
[323050110,1713621058749,-640.38,0.00015342,2]
[323050111,1713621058762,-621.99,0.00015342,2]
[323050112,1713621058776,-638.26917725,0.00015342,2]
[323050113,1713621058790,-500.0,0.00015342,2]
[323050114,1713621058804,-151.0,0.00015342,2]
[323050115,1713621058816,-1083.02,0.00015342,2]
[323050116,1713621058826,-151.0,0.00015342,2]
[323050117,1713621058839,-500.0,0.00015342,2]
[323050118,1713621058852,-912.32,0.00015342,2]
[323050119,1713621058863,-1323.41,0.00015342,2]
[323050120,1713621058877,-500.0,0.00015342,2]
[323050121,1713621058890,-500.0,0.00015342,2]
[323050122,1713621058903,-500.0,0.00015342,2]
[323050123,1713621058917,-500.0,0.00015342,2]
[323050124,1713621058931,-827.0,0.00015342,2]
[323050125,1713621058942,-590.76,0.00015342,2]
[323050126,1713621058953,-720.61,0.00015342,2]
[323050127,1713621058965,-640.53927703,0.00015342,2]
[323050128,1713621058979,-500.0,0.00015342,2]
[323050129,1713621058993,-500.0,0.00015342,2]
[323050130,1713621059006,-1207.81,0.00015342,2]
[323050131,1713621059019,-500.0,0.00015342,2]
[323050132,1713621059033,-500.0,0.00015342,2]
[323050133,1713621059045,-972.02,0.00015342,2]
[323050134,1713621059058,-1649.09,0.00015342,2]
[323050135,1713621059070,-500.0,0.00015342,2]
[323050136,1713621059083,-3308.96,0.00015342,2]
[323050137,1713621059094,-500.0,0.00015342,2]
[323050138,1713621059107,-1214.04,0.00015342,2]
[323050139,1713621059121,-500.0,0.00015342,2]
[323050140,1713621059135,-500.0,0.00015342,2]
[323050141,1713621059148,-803.54,0.00015342,2]
[323050142,1713621059162,-500.0,0.00015342,2]
[323050143,1713621059176,-1303.19,0.00015342,2]
[323050144,1713621059189,-500.0,0.00015342,2]
[323050145,1713621059201,-3936.85,0.00015342,2]
[323050146,1713621059212,-500.0,0.00015342,2]
[323050147,1713621059224,-599.69,0.00015342,2]
[323050148,1713621059234,-500.0,0.00015342,2]
[323050149,1713621059245,-586.97,0.00015342,2]
[323050150,1713621059257,-500.0,0.00015342,2]
[323050151,1713621059270,-1031.32,0.00015342,2]
[323050152,1713621059284,-789.55,0.00015342,2]
[323050153,1713621059297,-500.0,0.00015342,2]
[323050154,1713621059311,-500.0,0.00015342,2]
[323050155,1713621059325,-500.0,0.00015342,2]
[323050156,1713621059338,-1204.32,0.00015342,2]
[323050157,1713621059349,-500.0,0.00015342,2]
[323050158,1713621059362,-500.0,0.00015342,2]
[323050159,1713621059374,-500.0,0.00015342,2]
[323050160,1713621059387,-702.73,0.00015342,2]
[323050161,1713621059398,-527.04885964,0.00015342,2]
[323050162,1713621059412,-500.0,0.00015342,2]
[323050163,1713621059424,-516.52,0.00015342,2]
[323050164,1713621059436,-500.0,0.00015342,2]
[323050165,1713621059449,-279.73803663,0.00015342,2]
[323050166,1713621059462,-500.0,0.00015342,2]
[323050167,1713621059475,-500.0,0.00015342,2]
[323050168,1713621059487,-500.0,0.00015342,2]
[323050169,1713621059501,-3310.74,0.00015342,2]
[323050170,1713621059515,-500.0,0.00015342,2]
[323050171,1713621059529,-500.0,0.00015342,2]
[323050172,1713621059542,-500.0,0.00015342,2]
[323050173,1713621059556,-500.0,0.00015342,2]
[323050174,1713621059568,-2883.58,0.00015342,2]
[323050175,1713621059580,-1816.08,0.00015342,2]
[323050176,1713621059592,-585.36,0.00015342,2]
[323050177,1713621059606,-855.47,0.00015342,2]
[323050178,1713621059619,-534.99,0.00015342,2]
[323050179,1713621059631,-500.0,0.00015342,2]
[323050180,1713621059645,-25055.79,0.00015342,2]
[323050181,1713621059656,-1302.76,0.00015342,2]
[323050182,1713621059668,-2836.68,0.00015342,2]
[323050183,1713621059680,-1460.91,0.00015342,2]
[323050184,1713621059692,-11346.84,0.00015342,2]
[323050185,1713621059703,-604.68,0.00015342,2]
[323050186,1713621059717,-500.0,0.00015342,2]
[323050187,1713621059730,-500.0,0.00015342,2]
[323050188,1713621059741,-2104.73,0.00015342,2]
[323050189,1713621059753,-500.0,0.00015342,2]
[323050190,1713621059765,-500.0,0.00015342,2]
[323050191,1713621059776,-500.0,0.00015342,2]
[323050192,1713621059787,-500.0,0.00015342,2]
[323050193,1713621059797,-500.0,0.00015342,2]
[323050194,1713621059808,-500.0,0.00015342,2]
[323050195,1713621059818,-500.0,0.00015342,2]
[323050196,1713621059829,-500.0,0.00015342,2]
[323050197,1713621059840,-500.0,0.00015342,2]
[323050198,1713621059850,-500.0,0.00015342,2]
[323050199,1713621059862,-2073.42,0.00015342,2]
[323050200,1713621059873,-1526.62,0.00015342,2]
[323050201,1713621059884,-500.0,0.00015342,2]
[323050202,1713621059895,-500.0,0.00015342,2]
[323050203,1713621059906,-500.0,0.00015342,2]
[323050204,1713621059917,-500.0,0.00015342,2]
[323050205,1713621059928,-1538.77,0.00015342,2]
[323050206,1713621059938,-17543.18,0.00015342,2]
[323050207,1713621059950,-500.0,0.00015342,2]
[323050208,1713621059961,-500.0,0.00015342,2]
[323050209,1713621059972,-500.0,0.00015342,2]
[323050210,1713621059984,-4660.49,0.00015342,2]
[323050211,1713621059996,-404.89334543,0.00015342,2]
[323050212,1713621060008,-2699.08,0.00015342,2]
[323050213,1713621060019,-500.0,0.00015342,2]
[323050214,1713621060031,-1491.91,0.00015342,2]
[323050215,1713621060043,-500.0,0.00015342,2]
[323050216,1713621060054,-1179.82,0.00015342,2]
[323050217,1713621060067,-1530.53,0.00015342,2]
[323050218,1713621060080,-581.88,0.00015342,2]
[323050219,1713621060092,-500.0,0.00015342,2]
[323050220,1713621060104,-500.0,0.00015342,2]
[323050221,1713621060115,-2419.34,0.00015342,2]
[323050222,1713621060126,-500.0,0.00015342,2]
[323050223,1713621060138,-623.31143185,0.00015342,2]
[323050224,1713621060151,-500.0,0.00015342,2]
[323050225,1713621060164,-500.0,0.00015342,2]
[323050226,1713621060176,-1046.7,0.00015342,2]
[323050227,1713621060188,-929.27,0.00015342,2]
[323050228,1713621060201,-1397.79,0.00015342,2]
[323050229,1713621060216,-2207.26,0.00015342,2]
[323050230,1713621060228,-5291.84,0.00015342,2]
[323050231,1713621060241,-983.83,0.00015342,2]
[323050232,1713621060253,-584.35,0.00015342,2]
[323050233,1713621060265,-500.0,0.00015342,2]
[323050234,1713621060278,-433.231704,0.00015342,2]
[323050235,1713621060292,-433.231704,0.00015342,2]
[323050236,1713621060305,-689.72,0.00015342,2]
[323050237,1713621060316,-820.73,0.00015342,2]
[323050238,1713621060328,-2126.15,0.00015342,2]
[323050239,1713621060340,-2569.48,0.00015342,2]
[323050240,1713621060359,-3579.93,0.00015342,2]
[323050241,1713621060372,-873.88,0.00015342,2]
[323050242,1713621060383,-151.0,0.00015342,2]
[323050243,1713621060394,-151.0,0.00015342,2]
[323050244,1713621060404,-211.0,0.00015342,2]
[323050245,1713621060416,-500.0,0.00015342,2]
[323050246,1713621060427,-433.231704,0.00015342,2]
[323050247,1713621060438,-433.231704,0.00015342,2]
[323050248,1713621060449,-5218.13,0.00015342,2]
[323050249,1713621060461,-180.819163,0.00015342,2]
[323050250,1713621060472,-500.0,0.00015342,2]
[323050251,1713621060482,-500.0,0.00015342,2]
[323050252,1713621060493,-180.819163,0.00015342,2]
[323050253,1713621060504,-500.0,0.00015342,2]
[323050254,1713621060515,-987.0,0.00015342,2]
[323050255,1713621060527,-500.0,0.00015342,2]
[323050256,1713621060539,-20114.69,0.00015342,2]
[323050257,1713621060550,-500.0,0.00015342,2]
[323050258,1713621060560,-893.57,0.00015342,2]
[323050259,1713621060571,-500.0,0.00015342,2]
[323050260,1713621060582,-637.43,0.00015342,2]
[323050261,1713621060593,-1731.18,0.00015342,2]
[323050262,1713621060606,-154.009994,0.00015342,2]
[323050263,1713621060616,-1285.12,0.00015342,2]
[323050264,1713621060627,-180.819163,0.00015342,2]
[323050265,1713621060639,-1109.59,0.00015342,2]
[323050266,1713621060652,-180.819163,0.00015342,2]
[323050267,1713621060663,-1096.27,0.00015342,2]
[323050268,1713621060676,-500.0,0.00015342,2]
[323050269,1713621060688,-725.21,0.00015342,2]
[323050270,1713621060701,-500.0,0.00015342,2]
[323050271,1713621060714,-500.0,0.00015342,2]
[323050272,1713621060725,-413.51657164,0.00015342,2]
[323050273,1713621060737,-1089.81,0.00015342,2]
[323050274,1713621060748,-226.0755973,0.00015342,2]
[323050275,1713621060760,-508.71,0.00015342,2]
[323050276,1713621060771,-500.0,0.00015342,2]
[323050277,1713621060783,-500.0,0.00015342,2]
[323050278,1713621060796,-1517.58,0.00015342,2]